[Event "Late-Titled-Tuesday-Blitz-September-12-2023"]
[Site "Chess.com"]
[Date "2023.09.12"]
[Round "2"]
[White "picturesquecheck"]
[Black "Herman-NY"]
[Result "1/2-1/2"]
[WhiteElo "2324"]
[BlackElo "2522"]
[TimeControl "180+1"]
[EndTime "14:17:17 PDT"]
[Termination "Game drawn by repetition"]

1. e4 {[%clk 0:03:00.9]} 1... c5 {[%clk 0:03:00]} 2. Nf3 {[%clk 0:03:00.5]} 2...
Nc6 {[%clk 0:03:00]} 3. Nc3 {[%clk 0:02:57.7]} 3... e6 {[%clk 0:02:50.2]} 4. d4
{[%clk 0:02:55.4]} 4... cxd4 {[%clk 0:02:51.1]} 5. Nxd4 {[%clk 0:02:56.1]} 5...
a6 {[%clk 0:02:50.6]} 6. Be2 {[%clk 0:02:49]} 6... Qc7 {[%clk 0:02:50]} 7. O-O
{[%clk 0:02:47.7]} 7... Nf6 {[%clk 0:02:49.8]} 8. Be3 {[%clk 0:02:47.5]} 8...
Be7 {[%clk 0:02:44.3]} 9. f4 {[%clk 0:02:47.3]} 9... d6 {[%clk 0:02:44.5]} 10.
Qe1 {[%clk 0:02:45.6]} 10... O-O {[%clk 0:02:40.5]} 11. a3 {[%clk 0:02:42.1]}
11... Bd7 {[%clk 0:02:35.1]} 12. Rd1 {[%clk 0:02:41.2]} 12... Nxd4 {[%clk
0:02:33.6]} 13. Bxd4 {[%clk 0:02:41.4]} 13... Bc6 {[%clk 0:02:34.5]} 14. Qg3
{[%clk 0:02:40.5]} 14... Rad8 {[%clk 0:02:05]} 15. Bf3 {[%clk 0:02:35.3]} 15...
Rfe8 {[%clk 0:02:02.9]} 16. e5 {[%clk 0:02:23.4]} 16... dxe5 {[%clk 0:02:02.9]}
17. fxe5 {[%clk 0:02:11.8]} 17... Rxd4 {[%clk 0:02:02.7]} 18. Rxd4 {[%clk
0:02:04.6]} 18... Bc5 {[%clk 0:02:01]} 19. Ne2 {[%clk 0:02:04.7]} 19... Nd7
{[%clk 0:01:27.3]} 20. Bxc6 {[%clk 0:01:57.1]} 20... bxc6 {[%clk 0:01:21.9]} 21.
Kh1 {[%clk 0:01:53.8]} 21... Bxd4 {[%clk 0:01:21.2]} 22. Nxd4 {[%clk 0:01:54.7]}
22... Nxe5 {[%clk 0:01:17.2]} 23. Re1 {[%clk 0:01:23.3]} 23... f6 {[%clk
0:01:15.7]} 24. Nf3 {[%clk 0:01:23.4]} 24... Rd8 {[%clk 0:01:08.5]} 25. Nxe5
{[%clk 0:01:23.6]} 25... fxe5 {[%clk 0:01:08.4]} 26. h3 {[%clk 0:01:23]} 26...
Rd5 {[%clk 0:00:47.9]} 27. Qg4 {[%clk 0:01:22.7]} 27... Qd6 {[%clk 0:00:40.1]}
28. Qe2 {[%clk 0:00:59.7]} 28... a5 {[%clk 0:00:35]} 29. Qh5 {[%clk 0:00:39.6]}
29... h6 {[%clk 0:00:31.3]} 30. Rf1 {[%clk 0:00:37]} 30... e4 {[%clk 0:00:22.2]}
31. Qe2 {[%clk 0:00:37.1]} 31... Qe5 {[%clk 0:00:13.9]} 32. Qe3 {[%clk
0:00:35.8]} 32... Kh7 {[%clk 0:00:08]} 33. Re1 {[%clk 0:00:34.6]} 33... Rd4
{[%clk 0:00:05.6]} 34. c3 {[%clk 0:00:35.1]} 34... Rc4 {[%clk 0:00:03.3]} 35.
Qb6 {[%clk 0:00:27.3]} 35... a4 {[%clk 0:00:03.1]} 36. Qe3 {[%clk 0:00:24.7]}
36... Qd5 {[%clk 0:00:02.7]} 37. Qf4 {[%clk 0:00:24.2]} 37... Qf5 {[%clk
0:00:01.6]} 38. Qe3 {[%clk 0:00:24]} 38... Qd5 {[%clk 0:00:01.9]} 39. Qf4 {[%clk
0:00:24.1]} 39... Qf5 {[%clk 0:00:02.3]} 40. Qe3 {[%clk 0:00:24.6]} 40... Qd5
{[%clk 0:00:03]} 1/2-1/2

[Event "Late-Titled-Tuesday-Blitz-September-12-2023"]
[Site "Chess.com"]
[Date "2023.09.12"]
[Round "2"]
[White "Schattman"]
[Black "PawnEatingZombie"]
[Result "1-0"]
[WhiteElo "2466"]
[BlackElo "2196"]
[TimeControl "180+1"]
[EndTime "14:17:17 PDT"]
[Termination "Schattman won by resignation"]

1. Nf3 {[%clk 0:03:00.9]} 1... c5 {[%clk 0:02:59.3]} 2. b3 {[%clk 0:03:00]} 2...
Nc6 {[%clk 0:02:59.1]} 3. Bb2 {[%clk 0:02:59.8]} 3... d6 {[%clk 0:02:58.4]} 4.
d4 {[%clk 0:02:59]} 4... cxd4 {[%clk 0:02:57.3]} 5. Nxd4 {[%clk 0:02:59.9]} 5...
Nf6 {[%clk 0:02:56]} 6. e3 {[%clk 0:02:58.9]} 6... e6 {[%clk 0:02:55]} 7. Be2
{[%clk 0:02:58.5]} 7... Be7 {[%clk 0:02:55.3]} 8. O-O {[%clk 0:02:57.9]} 8...
O-O {[%clk 0:02:55.5]} 9. c4 {[%clk 0:02:58.1]} 9... a6 {[%clk 0:02:52.6]} 10.
Nc3 {[%clk 0:02:57.9]} 10... Qc7 {[%clk 0:02:53]} 11. Rc1 {[%clk 0:02:56.3]}
11... Bd7 {[%clk 0:02:47.7]} 12. Bf3 {[%clk 0:02:53.7]} 12... Ne5 {[%clk
0:02:39.4]} 13. Be2 {[%clk 0:02:51]} 13... Rac8 {[%clk 0:02:34.4]} 14. h3 {[%clk
0:02:48]} 14... Qb8 {[%clk 0:02:33]} 15. f4 {[%clk 0:02:38]} 15... Ng6 {[%clk
0:02:31.6]} 16. Bd3 {[%clk 0:02:31]} 16... Rfe8 {[%clk 0:02:30.2]} 17. a4 {[%clk
0:02:25.4]} 17... Nf8 {[%clk 0:02:19.2]} 18. Kh1 {[%clk 0:02:24.9]} 18... Bd8
{[%clk 0:02:15.1]} 19. Ne4 {[%clk 0:02:24.6]} 19... e5 {[%clk 0:02:02.5]} 20.
fxe5 {[%clk 0:02:07.6]} 20... dxe5 {[%clk 0:02:01.9]} 21. Nxf6+ {[%clk
0:02:00.5]} 21... Bxf6 {[%clk 0:02:00.9]} 22. Nf5 {[%clk 0:01:53.9]} 22... Bxf5
{[%clk 0:02:00.8]} 23. Bxf5 {[%clk 0:01:50.7]} 23... Rcd8 {[%clk 0:02:01.1]} 24.
Qc2 {[%clk 0:01:44.9]} 24... Qd6 {[%clk 0:01:45.9]} 25. Rcd1 {[%clk 0:01:39.9]}
25... Qe7 {[%clk 0:01:45.3]} 26. Be4 {[%clk 0:01:38.3]} 26... Rxd1 {[%clk
0:01:33.8]} 27. Rxd1 {[%clk 0:01:37.8]} 27... g6 {[%clk 0:01:29.3]} 28. Bc3
{[%clk 0:01:30.8]} 28... Bg7 {[%clk 0:01:26.2]} 29. Qd2 {[%clk 0:01:29]} 29...
Bh6 {[%clk 0:01:14.6]} 30. Qe2 {[%clk 0:01:19.8]} 30... b6 {[%clk 0:01:06]} 31.
Bd5 {[%clk 0:01:18.2]} 31... Bg7 {[%clk 0:00:52.2]} 32. Rf1 {[%clk 0:01:17.5]}
32... Ne6 {[%clk 0:00:52.3]} 33. Qf3 {[%clk 0:01:08.8]} 33... Rf8 {[%clk
0:00:51.2]} 34. Qd1 {[%clk 0:01:04.8]} 34... Kh8 {[%clk 0:00:48.8]} 35. Qa1
{[%clk 0:01:04.2]} 35... Nc5 {[%clk 0:00:44.3]} 36. Qb2 {[%clk 0:00:58.5]} 36...
a5 {[%clk 0:00:42.9]} 37. e4 {[%clk 0:00:57.6]} 37... Ne6 {[%clk 0:00:41.8]} 38.
Bxe6 {[%clk 0:00:55.2]} 38... Qxe6 {[%clk 0:00:41.7]} 39. Rd1 {[%clk 0:00:55.1]}
39... h5 {[%clk 0:00:35.7]} 40. Rd5 {[%clk 0:00:53.6]} 40... Re8 {[%clk
0:00:33.5]} 41. Qd2 {[%clk 0:00:52.1]} 41... f5 {[%clk 0:00:22.5]} 42. Rd6
{[%clk 0:00:48.5]} 42... Qf7 {[%clk 0:00:22.7]} 43. Rd7 {[%clk 0:00:46.4]} 43...
Qf6 {[%clk 0:00:20.9]} 44. Rd6 {[%clk 0:00:43.9]} 44... Qf7 {[%clk 0:00:21]} 45.
Qd5 {[%clk 0:00:34]} 45... fxe4 {[%clk 0:00:18.8]} 46. Qxf7 {[%clk 0:00:32.9]}
1-0

[Event "Late-Titled-Tuesday-Blitz-September-12-2023"]
[Site "Chess.com"]
[Date "2023.09.12"]
[Round "2"]
[White "younix2022"]
[Black "stasOR4ik"]
[Result "0-1"]
[WhiteElo "2058"]
[BlackElo "2436"]
[TimeControl "180+1"]
[EndTime "14:17:18 PDT"]
[Termination "stasOR4ik won by checkmate"]

1. Nf3 {[%clk 0:03:00.2]} 1... d5 {[%clk 0:02:59.7]} 2. c4 {[%clk 0:03:00.7]}
2... c6 {[%clk 0:02:59.4]} 3. d4 {[%clk 0:03:00.4]} 3... Nf6 {[%clk 0:02:59.7]}
4. Bf4 {[%clk 0:03:00.3]} 4... Bg4 {[%clk 0:02:50.9]} 5. e3 {[%clk 0:02:59]}
5... e6 {[%clk 0:02:49.8]} 6. Nbd2 {[%clk 0:02:57.1]} 6... Nbd7 {[%clk
0:02:49.2]} 7. Be2 {[%clk 0:02:55.7]} 7... Ne4 {[%clk 0:02:45.8]} 8. O-O {[%clk
0:02:54.1]} 8... Ndf6 {[%clk 0:02:41.2]} 9. Rc1 {[%clk 0:02:49.7]} 9... Bd6
{[%clk 0:02:40.3]} 10. cxd5 {[%clk 0:02:48.3]} 10... Bxf4 {[%clk 0:02:38.5]} 11.
exf4 {[%clk 0:02:45]} 11... exd5 {[%clk 0:02:37.8]} 12. Ne5 {[%clk 0:02:42.4]}
12... Bxe2 {[%clk 0:02:37]} 13. Qxe2 {[%clk 0:02:42.7]} 13... O-O {[%clk
0:02:37.1]} 14. Nxe4 {[%clk 0:02:32.9]} 14... dxe4 {[%clk 0:02:32.8]} 15. Rfd1
{[%clk 0:02:31.3]} 15... Qa5 {[%clk 0:02:27.8]} 16. a3 {[%clk 0:02:28.7]} 16...
Rad8 {[%clk 0:02:26.6]} 17. Qc4 {[%clk 0:02:17.9]} 17... Rd5 {[%clk 0:02:22.5]}
18. Rc2 {[%clk 0:01:59.2]} 18... Rfd8 {[%clk 0:02:20.9]} 19. Rcd2 {[%clk
0:01:59.7]} 19... Qb5 {[%clk 0:02:19.8]} 20. Qc3 {[%clk 0:01:57]} 20... Ne8
{[%clk 0:01:46.1]} 21. Qh3 {[%clk 0:01:46.3]} 21... Qa4 {[%clk 0:01:36.8]} 22.
Qf5 {[%clk 0:01:38.2]} 22... Nf6 {[%clk 0:01:34.1]} 23. g4 {[%clk 0:01:23.3]}
23... R5d6 {[%clk 0:01:15.9]} 24. g5 {[%clk 0:01:22.1]} 24... g6 {[%clk
0:01:16.3]} 25. Qh3 {[%clk 0:01:13]} 25... Nh5 {[%clk 0:01:13.6]} 26. Qe3 {[%clk
0:01:06.4]} 26... Ng7 {[%clk 0:00:49.7]} 27. Qxe4 {[%clk 0:01:03.4]} 27... c5
{[%clk 0:00:47.1]} 28. Qxb7 {[%clk 0:00:57.5]} 28... Rxd4 {[%clk 0:00:44.5]} 29.
Qxf7+ {[%clk 0:00:54.2]} 29... Kh8 {[%clk 0:00:43.8]} 30. Rxd4 {[%clk
0:00:47.1]} 30... cxd4 {[%clk 0:00:44.7]} 31. Rd3 {[%clk 0:00:44.1]} 31... Rc8
{[%clk 0:00:35.9]} 32. Nxg6+ {[%clk 0:00:29.2]} 32... hxg6 {[%clk 0:00:33.2]}
33. Rh3+ {[%clk 0:00:30.1]} 33... Nh5 {[%clk 0:00:33.3]} 34. Qxg6 {[%clk
0:00:30.9]} 34... Qd1+ {[%clk 0:00:27.7]} 35. Kg2 {[%clk 0:00:26.7]} 35... Qg4+
{[%clk 0:00:28.4]} 36. Rg3 {[%clk 0:00:17.5]} 36... Nxf4+ {[%clk 0:00:27.9]} 37.
Kf1 {[%clk 0:00:13.9]} 37... Rc1# {[%clk 0:00:28.5]} 0-1

[Event "Late-Titled-Tuesday-Blitz-September-12-2023"]
[Site "Chess.com"]
[Date "2023.09.12"]
[Round "2"]
[White "ckgchess"]
[Black "Sjakkerntobi"]
[Result "1-0"]
[WhiteElo "2881"]
[BlackElo "2519"]
[TimeControl "180+1"]
[EndTime "14:17:19 PDT"]
[Termination "ckgchess won by checkmate"]

1. e4 {[%clk 0:03:00.9]} 1... e6 {[%clk 0:02:59.4]} 2. d3 {[%clk 0:03:00.4]}
2... d5 {[%clk 0:03:00.1]} 3. Nd2 {[%clk 0:03:01.1]} 3... c5 {[%clk 0:03:00.6]}
4. g3 {[%clk 0:03:01.4]} 4... Nc6 {[%clk 0:03:01]} 5. Bg2 {[%clk 0:03:01.8]}
5... Nf6 {[%clk 0:03:01.8]} 6. Ngf3 {[%clk 0:03:01.7]} 6... Be7 {[%clk
0:03:02.3]} 7. O-O {[%clk 0:03:01.9]} 7... O-O {[%clk 0:03:02.8]} 8. e5 {[%clk
0:03:02.2]} 8... Nd7 {[%clk 0:03:03.5]} 9. Re1 {[%clk 0:03:02.9]} 9... b5 {[%clk
0:03:03.6]} 10. h4 {[%clk 0:03:01]} 10... Bb7 {[%clk 0:03:03.9]} 11. h5 {[%clk
0:03:01.1]} 11... h6 {[%clk 0:03:04.3]} 12. Nf1 {[%clk 0:03:01.3]} 12... Qb6
{[%clk 0:03:04.6]} 13. Bf4 {[%clk 0:02:59]} 13... Rfc8 {[%clk 0:03:05.2]} 14.
Qd2 {[%clk 0:02:55.5]} 14... Qd8 {[%clk 0:03:02.8]} 15. Ne3 {[%clk 0:02:49.4]}
15... Nd4 {[%clk 0:02:58.1]} 16. Nxd4 {[%clk 0:02:23.4]} 16... cxd4 {[%clk
0:02:57.5]} 17. Ng4 {[%clk 0:02:24.2]} 17... Bf8 {[%clk 0:02:57]} 18. Rac1
{[%clk 0:02:17.6]} 18... a5 {[%clk 0:02:53.3]} 19. Nh2 {[%clk 0:02:09.3]} 19...
b4 {[%clk 0:02:50.8]} 20. Nf3 {[%clk 0:02:07.4]} 20... Qb6 {[%clk 0:02:36]} 21.
g4 {[%clk 0:02:07.7]} 21... a4 {[%clk 0:02:36.2]} 22. g5 {[%clk 0:02:03.2]}
22... hxg5 {[%clk 0:02:36.3]} 23. Bxg5 {[%clk 0:01:56]} 23... b3 {[%clk
0:02:36.2]} 24. cxb3 {[%clk 0:01:24.6]} 24... axb3 {[%clk 0:02:35.3]} 25. a3
{[%clk 0:01:24.4]} 25... Ba6 {[%clk 0:02:28]} 26. h6 {[%clk 0:01:17.5]} 26...
gxh6 {[%clk 0:02:27]} 27. Bxh6 {[%clk 0:01:16.3]} 27... Qd8 {[%clk 0:02:25.8]}
28. Nxd4 {[%clk 0:01:03.2]} 28... Bxh6 {[%clk 0:02:21.3]} 29. Qxh6 {[%clk
0:01:04.1]} 29... Bxd3 {[%clk 0:02:20.9]} 30. Nc6 {[%clk 0:00:55.4]} 30... Qf8
{[%clk 0:02:16.6]} 31. Qg5+ {[%clk 0:00:55.1]} 31... Bg6 {[%clk 0:02:11.3]} 32.
Ne7+ {[%clk 0:00:53.6]} 32... Kg7 {[%clk 0:02:11.2]} 33. Nxc8 {[%clk 0:00:47.5]}
33... Rxc8 {[%clk 0:02:11.8]} 34. Qe3 {[%clk 0:00:33.7]} 34... Rc2 {[%clk
0:02:08.2]} 35. Qxb3 {[%clk 0:00:27.3]} 35... Rxc1 {[%clk 0:01:52.8]} 36. Rxc1
{[%clk 0:00:28.2]} 36... Nxe5 {[%clk 0:01:46.1]} 37. Qc3 {[%clk 0:00:28.4]}
37... f6 {[%clk 0:01:46.6]} 38. Qg3 {[%clk 0:00:27.9]} 38... Qd6 {[%clk
0:01:43]} 39. a4 {[%clk 0:00:21]} 39... Qb6 {[%clk 0:01:33.8]} 40. b3 {[%clk
0:00:14.4]} 40... Nd3 {[%clk 0:01:31.4]} 41. Rc7+ {[%clk 0:00:13.2]} 41... Kh6
{[%clk 0:01:30.4]} 42. Qh4+ {[%clk 0:00:07.1]} 42... Bh5 {[%clk 0:01:30.4]} 43.
Qxf6+ {[%clk 0:00:07.4]} 43... Bg6 {[%clk 0:01:26.3]} 44. Qh4+ {[%clk
0:00:06.5]} 44... Bh5 {[%clk 0:01:26.8]} 45. Rc3 {[%clk 0:00:02.3]} 45... Qb4
{[%clk 0:01:10.6]} 46. Qf6+ {[%clk 0:00:02.1]} 46... Bg6 {[%clk 0:01:10.7]} 47.
Rxd3 {[%clk 0:00:03]} 47... Qe1+ {[%clk 0:01:10.6]} 48. Bf1 {[%clk 0:00:03.6]}
48... Kh5 {[%clk 0:00:54.3]} 49. Rh3+ {[%clk 0:00:04.5]} 49... Kg4 {[%clk
0:00:54.5]} 50. Qxg6+ {[%clk 0:00:04.7]} 50... Kf4 {[%clk 0:00:54.8]} 51. Qg3+
{[%clk 0:00:05.4]} 51... Kf5 {[%clk 0:00:55.4]} 52. Qf3+ {[%clk 0:00:05.7]}
52... Kg6 {[%clk 0:00:55.2]} 53. Rg3+ {[%clk 0:00:06.1]} 53... Kh6 {[%clk
0:00:55.1]} 54. Qh1# {[%clk 0:00:07]} 1-0

[Event "Late-Titled-Tuesday-Blitz-September-12-2023"]
[Site "Chess.com"]
[Date "2023.09.12"]
[Round "2"]
[White "German_Bazeev"]
[Black "Piotrek1979"]
[Result "0-1"]
[WhiteElo "2801"]
[BlackElo "2471"]
[TimeControl "180+1"]
[EndTime "14:17:20 PDT"]
[Termination "Piotrek1979 won by resignation"]

1. c4 {[%clk 0:03:00.9]} 1... g6 {[%clk 0:02:57.5]} 2. Nc3 {[%clk 0:02:58.5]}
2... Bg7 {[%clk 0:02:58.4]} 3. Nf3 {[%clk 0:02:57.8]} 3... c5 {[%clk 0:02:56.9]}
4. h4 {[%clk 0:02:56.2]} 4... Nc6 {[%clk 0:02:56.2]} 5. h5 {[%clk 0:02:56.4]}
5... d6 {[%clk 0:02:53.8]} 6. d3 {[%clk 0:02:54.4]} 6... e6 {[%clk 0:02:47.8]}
7. g3 {[%clk 0:02:49.1]} 7... Nge7 {[%clk 0:02:39.6]} 8. h6 {[%clk 0:02:47.9]}
8... Bxc3+ {[%clk 0:02:35.9]} 9. bxc3 {[%clk 0:02:48.8]} 9... f6 {[%clk
0:02:34.5]} 10. g4 {[%clk 0:02:42.4]} 10... e5 {[%clk 0:02:32.5]} 11. g5 {[%clk
0:02:42.6]} 11... f5 {[%clk 0:02:32]} 12. d4 {[%clk 0:02:36.3]} 12... e4 {[%clk
0:02:28.3]} 13. Nh4 {[%clk 0:02:27.6]} 13... O-O {[%clk 0:02:26.5]} 14. Ng2
{[%clk 0:02:20.5]} 14... Na5 {[%clk 0:02:19.9]} 15. e3 {[%clk 0:02:17.6]} 15...
Be6 {[%clk 0:02:19]} 16. d5 {[%clk 0:02:16.8]} 16... Bd7 {[%clk 0:02:17.7]} 17.
Nf4 {[%clk 0:02:14.7]} 17... Qc8 {[%clk 0:02:15.3]} 18. Rb1 {[%clk 0:02:07.6]}
18... b6 {[%clk 0:02:15]} 19. a4 {[%clk 0:02:07.5]} 19... Rd8 {[%clk 0:02:14.5]}
20. Be2 {[%clk 0:02:06.6]} 20... Rf8 {[%clk 0:02:01.4]} 21. Rg1 {[%clk
0:02:04.4]} 21... Qe8 {[%clk 0:02:00.9]} 22. Ra1 {[%clk 0:02:01.4]} 22... Nc8
{[%clk 0:01:59.7]} 23. Kf1 {[%clk 0:01:59.5]} 23... Ne7 {[%clk 0:01:47.5]} 24.
Kg2 {[%clk 0:01:58.5]} 24... Bc8 {[%clk 0:01:47.1]} 25. Ra3 {[%clk 0:01:53.7]}
25... Ba6 {[%clk 0:01:46.2]} 26. Qf1 {[%clk 0:01:54.1]} 26... Qd8 {[%clk
0:01:36.6]} 27. Kh2 {[%clk 0:01:52.8]} 27... Qd7 {[%clk 0:01:36.6]} 28. Bd2
{[%clk 0:01:44.2]} 28... Rf7 {[%clk 0:01:35.2]} 29. Rg3 {[%clk 0:01:39.2]} 29...
Re8 {[%clk 0:01:33.6]} 30. Ra2 {[%clk 0:01:04.1]} 30... Nb7 {[%clk 0:01:29.9]}
31. Rb2 {[%clk 0:01:03]} 31... Na5 {[%clk 0:01:29.4]} 32. Rb5 {[%clk 0:01:03.1]}
32... Bxb5 {[%clk 0:01:27.9]} 33. cxb5 {[%clk 0:01:00.7]} 33... c4 {[%clk
0:01:27.9]} 34. Bc1 {[%clk 0:00:56.7]} 34... Rc8 {[%clk 0:01:27.6]} 35. Ba3
{[%clk 0:00:54.7]} 35... Nb3 {[%clk 0:01:20.9]} 36. Qd1 {[%clk 0:00:42]} 36...
Nc5 {[%clk 0:01:17.7]} 37. Qd4 {[%clk 0:00:38.5]} 37... Nxa4 {[%clk 0:01:13.8]}
38. Rg1 {[%clk 0:00:30.2]} 38... Nc5 {[%clk 0:01:13.4]} 39. Bb4 {[%clk
0:00:29.2]} 39... Qxb5 {[%clk 0:01:01.5]} 40. Nh5 {[%clk 0:00:23.6]} 40... gxh5
{[%clk 0:00:59.8]} 41. g6 {[%clk 0:00:22]} 41... hxg6 {[%clk 0:00:57.6]} 42.
Bxh5 {[%clk 0:00:21.4]} 42... Kh7 {[%clk 0:00:57.7]} 43. Rg5 {[%clk 0:00:18.8]}
43... a5 {[%clk 0:00:48.7]} 44. Ba3 {[%clk 0:00:15.3]} 44... Qb3 {[%clk
0:00:48.3]} 45. Bc1 {[%clk 0:00:08.8]} 45... Qc2 {[%clk 0:00:47.7]} 46. Bd2
{[%clk 0:00:08.7]} 46... Qd3 {[%clk 0:00:47.8]} 0-1

[Event "Late-Titled-Tuesday-Blitz-September-12-2023"]
[Site "Chess.com"]
[Date "2023.09.12"]
[Round "2"]
[White "Joshukid"]
[Black "artin10862"]
[Result "0-1"]
[WhiteElo "2538"]
[BlackElo "2963"]
[TimeControl "180+1"]
[EndTime "14:17:21 PDT"]
[Termination "artin10862 won on time"]

1. Nf3 {[%clk 0:03:00.9]} 1... c5 {[%clk 0:02:51.9]} 2. c4 {[%clk 0:02:59.1]}
2... Nc6 {[%clk 0:02:49.3]} 3. b3 {[%clk 0:02:55.9]} 3... Nf6 {[%clk 0:02:44.9]}
4. Bb2 {[%clk 0:02:54.1]} 4... d5 {[%clk 0:02:45.3]} 5. cxd5 {[%clk 0:02:51.9]}
5... Nxd5 {[%clk 0:02:46.2]} 6. e3 {[%clk 0:02:50.9]} 6... Ndb4 {[%clk
0:02:43.6]} 7. d3 {[%clk 0:02:45.1]} 7... Bf5 {[%clk 0:02:37.6]} 8. e4 {[%clk
0:02:44.3]} 8... Bg4 {[%clk 0:02:28.1]} 9. a3 {[%clk 0:02:39]} 9... Bxf3 {[%clk
0:02:27.3]} 10. gxf3 {[%clk 0:02:39.9]} 10... Na6 {[%clk 0:02:26.9]} 11. Bg2
{[%clk 0:02:20.8]} 11... e5 {[%clk 0:02:17.8]} 12. O-O {[%clk 0:02:18.1]} 12...
Nc7 {[%clk 0:02:16.9]} 13. Nc3 {[%clk 0:02:14.2]} 13... Nd4 {[%clk 0:02:14.4]}
14. Ne2 {[%clk 0:01:41.8]} 14... Nce6 {[%clk 0:02:10.5]} 15. Bxd4 {[%clk
0:01:41.4]} 15... cxd4 {[%clk 0:02:08.2]} 16. Qd2 {[%clk 0:01:32.9]} 16... g6
{[%clk 0:01:59.7]} 17. f4 {[%clk 0:01:17.3]} 17... Bh6 {[%clk 0:01:54.9]} 18.
Qb4 {[%clk 0:01:14.8]} 18... Bxf4 {[%clk 0:01:47.1]} 19. Qxb7 {[%clk 0:01:11.3]}
19... O-O {[%clk 0:01:46.4]} 20. Qd5 {[%clk 0:01:00.8]} 20... Qh4 {[%clk
0:01:43.8]} 21. Ng3 {[%clk 0:00:52.9]} 21... Rac8 {[%clk 0:01:39.3]} 22. b4
{[%clk 0:00:43.1]} 22... Rc3 {[%clk 0:01:35.8]} 23. Rfd1 {[%clk 0:00:38.5]}
23... Rfc8 {[%clk 0:01:34.1]} 24. a4 {[%clk 0:00:34.4]} 24... Qe7 {[%clk
0:01:31.5]} 25. b5 {[%clk 0:00:33.2]} 25... R8c5 {[%clk 0:01:23.4]} 26. Qa8+
{[%clk 0:00:21.2]} 26... Rc8 {[%clk 0:01:19.3]} 27. Qd5 {[%clk 0:00:20.3]} 27...
R3c5 {[%clk 0:01:15.6]} 28. Qb3 {[%clk 0:00:19.5]} 28... h5 {[%clk 0:01:15.6]}
29. Bh3 {[%clk 0:00:19]} 29... R8c7 {[%clk 0:01:08]} 30. Bxe6 {[%clk 0:00:19.2]}
30... fxe6 {[%clk 0:01:08.2]} 31. Ne2 {[%clk 0:00:13.1]} 31... Kg7 {[%clk
0:01:03.2]} 32. Nxf4 {[%clk 0:00:12.7]} 32... exf4 {[%clk 0:01:03.1]} 33. Kh1
{[%clk 0:00:13.3]} 33... Rc2 {[%clk 0:00:54.3]} 34. Ra2 {[%clk 0:00:10.2]} 34...
R2c3 {[%clk 0:00:53.2]} 35. Qb2 {[%clk 0:00:08.8]} 35... e5 {[%clk 0:00:50.1]}
36. a5 {[%clk 0:00:08.7]} 36... f3 {[%clk 0:00:47.2]} 37. Qd2 {[%clk 0:00:03.5]}
37... Qh4 {[%clk 0:00:41.2]} 38. b6 {[%clk 0:00:02.1]} 38... Qg4 {[%clk
0:00:28.4]} 0-1

[Event "Late-Titled-Tuesday-Blitz-September-12-2023"]
[Site "Chess.com"]
[Date "2023.09.12"]
[Round "2"]
[White "CrushingKings"]
[Black "GMKrikor"]
[Result "0-1"]
[WhiteElo "2520"]
[BlackElo "2881"]
[TimeControl "180+1"]
[EndTime "14:17:22 PDT"]
[Termination "GMKrikor won on time"]

1. Nf3 {[%clk 0:02:15.3]} 1... d5 {[%clk 0:02:58.5]} 2. g3 {[%clk 0:02:13.8]}
2... Nc6 {[%clk 0:02:57.8]} 3. d4 {[%clk 0:02:13.5]} 3... Bf5 {[%clk 0:02:56.2]}
4. Bg2 {[%clk 0:02:13.9]} 4... Nb4 {[%clk 0:02:55.9]} 5. Na3 {[%clk 0:02:14.4]}
5... e6 {[%clk 0:02:52.5]} 6. O-O {[%clk 0:02:11.2]} 6... Be7 {[%clk 0:02:51.3]}
7. Ne1 {[%clk 0:02:10.9]} 7... Nf6 {[%clk 0:02:37.8]} 8. c4 {[%clk 0:02:11]}
8... O-O {[%clk 0:02:33.8]} 9. b3 {[%clk 0:02:10.9]} 9... h5 {[%clk 0:02:33.2]}
10. Bb2 {[%clk 0:02:11]} 10... h4 {[%clk 0:02:33.2]} 11. Nac2 {[%clk 0:02:03.9]}
11... Nxc2 {[%clk 0:02:25.7]} 12. Nxc2 {[%clk 0:02:04.8]} 12... h3 {[%clk
0:02:26.2]} 13. Bh1 {[%clk 0:02:00.3]} 13... c6 {[%clk 0:02:23]} 14. Ne3 {[%clk
0:01:50]} 14... Bg6 {[%clk 0:01:59.8]} 15. Rc1 {[%clk 0:01:49.1]} 15... a5
{[%clk 0:01:58.7]} 16. a3 {[%clk 0:01:49.1]} 16... Qb6 {[%clk 0:01:53.6]} 17. c5
{[%clk 0:01:44.9]} 17... Qa6 {[%clk 0:01:53.3]} 18. Bf3 {[%clk 0:01:30.9]} 18...
b6 {[%clk 0:01:48]} 19. Ng4 {[%clk 0:00:54.6]} 19... Rfc8 {[%clk 0:00:59.7]} 20.
Ne5 {[%clk 0:00:28.8]} 20... Bh7 {[%clk 0:00:59.4]} 21. e3 {[%clk 0:00:26]}
21... Rab8 {[%clk 0:00:55.7]} 22. Be2 {[%clk 0:00:25.6]} 22... Qb7 {[%clk
0:00:55.4]} 23. Rc3 {[%clk 0:00:04.7]} 23... bxc5 {[%clk 0:00:54]} 24. dxc5
{[%clk 0:00:05.6]} 24... Ne4 {[%clk 0:00:54.2]} 25. Qd4 {[%clk 0:00:03.4]} 25...
Nxc3 {[%clk 0:00:48.9]} 26. Bxc3 {[%clk 0:00:03.3]} 26... Bf6 {[%clk 0:00:46.8]}
27. b4 {[%clk 0:00:03.6]} 27... axb4 {[%clk 0:00:45.1]} 28. axb4 {[%clk
0:00:04.5]} 28... Ra8 {[%clk 0:00:45.4]} 29. g4 {[%clk 0:00:04.7]} 29... Qc7
{[%clk 0:00:39.1]} 30. f4 {[%clk 0:00:04.6]} 30... Be4 {[%clk 0:00:35]} 31. g5
{[%clk 0:00:03]} 31... Bxe5 {[%clk 0:00:35.5]} 32. fxe5 {[%clk 0:00:03.9]} 32...
Ra2 {[%clk 0:00:34.7]} 33. Bf3 {[%clk 0:00:03.8]} 33... Bxf3 {[%clk 0:00:34.2]}
34. Rxf3 {[%clk 0:00:04.7]} 34... Rg2+ {[%clk 0:00:33.6]} 35. Kh1 {[%clk
0:00:05.3]} 35... Qe7 {[%clk 0:00:26.1]} 36. Qf4 {[%clk 0:00:01]} 36... Qxg5
{[%clk 0:00:20.2]} 0-1